Cogmind - Beta 12 @@@ ROGUE MODE // 2023.03.09 @ 12:59:18 Player: Holy_Ghost Result: Self-destructed Performance ------------- Evolutions (1) 500 Regions Visited (2) 400 Robots Destroyed (31) 155 Value Destroyed (908) 908 Prototype IDs (0) 0 Alien Tech Used (0) 0 Bonus (11) 11 TOTAL SCORE: 1974 Bonus ------- High Alert Combat Kills 11 Cogmind --------- Core Integrity 306/400 Matter 290/300 Energy 265/265 System Corruption 0% Temperature Cool (0) Movement Treading (145) Location -9/Materials Parts ------- > --- POWER (1) -------- Improved Ion Engine > --- PROPULSION (3) --- Advanced Treads Advanced Treads Armored Wheel > --- UTILITY (3) ------ Large Storage Unit Sensor Array Signal Interpreter > --- WEAPON (2) ------- Assault Rifle Light Cannon > --- INVENTORY (15) --- Ion Engine Light Ion Engine Advanced Treads Armored Wheel Armored Wheel Core Shielding Shield Generator Hacking Suite Assault Rifle Light Assault Rifle Improved Grenade Launcher Improved Grenade Launcher Peak State ------------ > --- POWER ------------ Improved Ion Engine > --- PROPULSION ------- Advanced Treads Advanced Treads Armored Wheel > --- UTILITY ---------- Large Storage Unit Sensor Array Signal Interpreter > --- WEAPON ----------- Light Cannon Improved Grenade Launcher > --- INVENTORY -------- Ion Engine Light Ion Engine Advanced Treads Armored Wheel Armored Wheel Shield Generator Hacking Suite Assault Rifle Assault Rifle Light Assault Rifle Light Cannon Improved Grenade Launcher [Rating: 19] Favorites ----------- Power Improved Ion Engine Engine Improved Ion Engine Propulsion Advanced Treads Treads Advanced Treads Leg Aluminum Leg Wheel Armored Wheel Utility Large Storage Unit Device Sensor Array Storage Large Storage Unit Processor Signal Interpreter Weapon Light Cannon Energy Gun Small Laser Ballistic Gun Assault Rifle Ballistic Cannon Light Cannon Launcher Improved Grenade Launcher Build | -11 -10 -9 ------- Run | Jun Mat Mat Slots Evolved 2 | . . 2 Power . | . . . Propulsion 1 | . . 1 Utility 1 | . . 1 Weapon . | . . . Parts Attached 25 | 1 13 11 Power 2 | . 1 1 Engine 2 | . 1 1 Core . | . . . Reactor . | . . . Propulsion 7 | . 4 3 Treads 2 | . . 2 Leg 2 | . 2 . Wheel 3 | . 2 1 Hover . | . . . Flight . | . . . Utility 3 | . 1 2 Device 1 | . . 1 Storage 1 | . 1 . Processor 1 | . . 1 Hackware . | . . . Protection . | . . . Artifact . | . . . Weapon 13 | 1 7 5 Energy Gun 1 | 1 . . Energy Cannon . | . . . Ballistic Gun 6 | . 5 1 Ballistic Cannon 5 | . 2 3 Launcher 1 | . . 1 Special Weapon . | . . . Impact Weapon . | . . . Slashing Weapon . | . . . Piercing Weapon . | . . . Special Melee Weapon . | . . . Unidentified Prototypes . | . . . Parts Lost . | . . . Power . | . . . Propulsion . | . . . Utility . | . . . Weapon . | . . . Highest Loss Streak . | . . . To Critical Strikes . | . . . Average Slot Usage (%) 84 | . 85 83 Engine 12 | . 14 11 Treads 11 | . . 21 Leg 11 | . 23 . Wheel 8 | . 4 11 Device 1 | . . 3 Storage 12 | . 14 11 Processor 1 | . . 3 Energy Gun 3 | . 7 . Ballistic Gun 4 | . 6 1 Ballistic Cannon 17 | . 14 20 Naked Turns . | . . . Heaviest Build 34 | 12 26 34 Greatest Support 44 | 20 24 44 Greatest Overweight (x) 1 | . 1 1 Average Overweight (x) . | . . . Largest Inventory Capacity 15 | 8 15 15 Average Capacity 12 | 8 8 15 Most Carried 12 | 6 8 12 Average Carried 9 | 6 7 11 Final Capacity 15 | 8 15 15 Final Carried 12 | 6 8 12 Class Distribution -------------------- 100% | Mutant Dominant Class ---------------- Mutant | -10/Materials Mutant | -9/Materials Resources | -11 -10 -9 ----------- Run | Jun Mat Mat Matter Collected 835 | 210 199 426 Remotely . | . . . Salvage Created 943 | . 360 583 Parts 45 | . 15 30 Haulers Intercepted 3 | . 1 2 Recyclers Shooed . | . . . Parts Field Recycled . | . . . Retrieved Matter . | . . . Parts Self-Destructed . | . . . Prevented . | . . . Kills | -11 -10 -9 ------- Run | Jun Mat Mat Combat Hostiles Destroyed 25 | . 9 16 Guns 2 | . 2 . Cannons 19 | . 6 13 AOE 3 | . . 3 Classes Destroyed 7 | . 3 4 Worker 2 | . . 2 Hauler 3 | . 1 2 Operator 1 | . 1 . Swarmer 3 | . . 3 Grunt 17 | . 9 8 Duelist 1 | . . 1 Sentry 4 | . . 4 Best Kill Streak 6 | . 2 6 Combat Bots Only 3 | . 2 3 Max Kills in Single Turn 3 | . 1 3 Gunslinging . | . . . Exploded 3 | . . 3 Melee . | . . . Uniques/NPCs Destroyed . | . . . Combat | -11 -10 -9 -------- Run | Jun Mat Mat Damage Taken 861 | . 262 599 Core 136 | . 42 94 Absorbed by Shields . | . . . Core Remaining (%) 91 | 100 83 . Volleys Fired 69 | . 33 36 Largest 2 | . 2 2 Hottest 80 | . 80 70 Shots Fired 135 | . 66 69 Gun 49 | . 48 1 Cannon 85 | . 18 67 Launcher 1 | . . 1 Special . | . . . Kinetic 99 | . 31 68 Thermal 35 | . 35 . Explosive 1 | . . 1 Electromagnetic . | . . . Robot Hit Streak 12 | . 12 10 Robot Miss Streak 3 | . 3 2 Penetration Max . | . . . Secondary Targets . | . . . Shots Hit Robots 99 | . 50 49 Core Hits 44 | . 17 27 Critical Kills . | . . . Critical Parts Destroyed . | . . . Critical Strikes 4 | . . 4 Blast 4 | . . 4 Melee Attacks . | . . . Impact . | . . . Slashing . | . . . Piercing . | . . . Sneak Attacks . | . . . Combat Hostiles . | . . . Follow-up Attacks . | . . . Damage Inflicted 1717 | . 664 1053 Guns 450 | . 435 15 Cannons 1094 | . 229 865 Explosions 173 | . . 173 Melee . | . . . Ramming . | . . . Kinetic 1256 | . 376 880 Thermal 288 | . 288 . Explosive 173 | . . 173 Electromagnetic . | . . . Impact . | . . . Slashing . | . . . Piercing . | . . . Highest Corruption 3 | . 3 . Average Corruption 2 | . 2 . Corruption Purged . | . . . Corruption Blocked . | . . . Overload Shots . | . . . Overflow Damage . | . . . Projectiles . | . . . Explosions . | . . . Melee . | . . . Knockbacks 12 | . 5 7 Impact . | . . . Kinetic 12 | . 5 7 Secondary . | . . . Self-Inflicted Damage . | . . . Shots . | . . . Rammed . | . . . Targets Rammed . | . . . Kicked . | . . . Crushed . | . . . Highest Temperature 237 | . 237 51 Average Temperature 41 | . 62 20 Received Heat Transfer 351 | . 147 204 Effects 3 | . 3 . Energy Bleed 1 | . 1 . Interference 2 | . 2 . Siege Activations . | . . . Robots Corrupted . | . . . Combat Hostiles . | . . . Parts Fried . | . . . Impact Corruptions . | . . . Robots Melted 1 | . 1 . Combat Hostiles 1 | . 1 . Parts Melted 4 | . 4 . Heat Transferred 625 | . 625 . Parts Sabotaged . | . . . Parts Stolen . | . . . Parts Stripped . | . . . Power Chain Reactions . | . . . Missiles Intercepted . | . . . Alert | -11 -10 -9 ------- Run | Jun Mat Mat Peak Influence 426 | . 167 426 Initial 42 | . . 42 Average 140 | . 74 202 Maximum Alert Level 2 | . . 2 Low Security (%) 75 | 100 100 52 Level 1 18 | . . 36 Level 2 5 | . . 11 Level 3 . | . . . Level 4 . | . . . Level 5 . | . . . High Security . | . . . Max Security . | . . . Squads Dispatched 6 | . 3 3 Investigation 3 | . 1 2 Extermination . | . . . Reinforcement 3 | . 2 1 Assault . | . . . Garrison . | . . . Intercept . | . . . Searches Triggered . | . . . Construction Impeded . | . . . Haulers Reinforced . | . . . Active Scanning Responses . | . . . Cargo Convoy Interrupts . | . . . Stealth | -11 -10 -9 --------- Run | Jun Mat Mat Distress Signals 6 | . 4 2 Communications Jammed . | . . . Distress Signals . | . . . Times Spotted 38 | . 17 21 Peak Tracking Total 5 | . 4 5 Tactical Retreats 2 | . . 2 Traps | -11 -10 -9 ------- Run | Jun Mat Mat Traps Triggered 3 | . 2 1 Indirectly . | . . . Trap Hack Attempts . | . . . Triggered . | . . . Disarmed . | . . . Reprogrammed . | . . . Reused . | . . . Traps Extracted . | . . . Installed . | . . . Triggered . | . . . Machines | -11 -10 -9 ---------- Run | Jun Mat Mat Machines Disabled 1 | . . 1 Max in Single Turn 1 | . . 1 Machines Repaired . | . . . Machines Sabotaged . | . . . Overloaded Fab Kills . | . . . Hacking | -11 -10 -9 --------- Run | Jun Mat Mat Machines Accessed 8 | . 5 3 Terminals 6 | . 4 2 Fabricators . | . . . Repair Stations 1 | . 1 . Recycling Units . | . . . Scanalyzers 1 | . . 1 Garrison Access . | . . . Total Hacks 21 | . 13 8 Successful 9 | . 5 4 Failed 12 | . 8 4 Catastrophic 2 | . 2 . Database Lockouts . | . . . Manual 1 | . 1 . Terminals 17 | . 12 5 Fabricators . | . . . Repair Stations 1 | . 1 . Recycling Units . | . . . Scanalyzers 3 | . . 3 Garrison Access . | . . . Terminal Hacks 7 | . 5 2 Record 1 | . 1 . Locate Traps 2 | . 2 . Transport Status 1 | . . 1 Hauler Manifests 1 | . 1 . Zone Layout 2 | . 1 1 Fabricator Hacks . | . . . Repair Station Hacks . | . . . Recycling Unit Hacks . | . . . Scanalyzer 2 | . . 2 Insert Component 1 | . . 1 Analyze 1 | . . 1 Garrison Access Hacks . | . . . Unauthorized Hacks . | . . . Terminals . | . . . Fabricators . | . . . Repair Stations . | . . . Recycling Units . | . . . Scanalyzers . | . . . Garrison Access . | . . . Data Cores Recovered 1 | . 1 . Used . | . . . Hacking Detections 8 | . 5 3 Full Trace Events 2 | . 1 1 Feedback Events . | . . . Feedback Blocked . | . . . Robot Schematics Acquired . | . . . Robots Built . | . . . Authchips . | . . . Time . | . . . Total Robot Build Rating . | . . . Part Schematics Acquired 1 | . . 1 Parts Built . | . . . Authchips . | . . . Time . | . . . Total Part Build Rating . | . . . Parts Repaired . | . . . Time . | . . . Parts Recycled . | . . . Recycled Matter . | . . . Retrieved Matter . | . . . Retrieved Components . | . . . Parts Scanalyzed 1 | . . 1 Part Schematics Acquired 1 | . . 1 Parts Damaged . | . . . Bothacking | -11 -10 -9 ------------ Run | Jun Mat Mat Used RIF Installer . | . . . Robots Hacked . | . . . Non-combat . | . . . Combat . | . . . Robot Hacks Applied . | . . . Relay Couplers Released . | . . . Fabnet Peak Effective % . | . . . Robots Rewired . | . . . Allies Hacked . | . . . Hacks Repelled . | . . . Allies | -11 -10 -9 -------- Run | Jun Mat Mat Total Allies . | . . . Largest Group . | . . . Highest-Rated Group . | . . . Highest-Rated Ally . | . . . Total Orders . | . . . Ally Attacks . | . . . Total Damage . | . . . Kills . | . . . Allies Corrupted . | . . . Allies Melted . | . . . Intel | -11 -10 -9 ------- Run | Jun Mat Mat Robot Analysis Total . | . . . Derelict Logs Recovered . | . . . Drone Launches . | . . . Drone Recoveries . | . . . Exploration | -11 -10 -9 ------------- Run | Jun Mat Mat Turns Passed 1384 | 8 660 716 Spaces Moved 754 | 6 405 343 Core . | . . . Treads 327 | . . 327 Legs 318 | 6 312 . Wheels 109 | . 93 16 Hover . | . . . Flight . | . . . Fastest Speed 90 | 120 90 90 Average Speed 128 | 120 116 142 Slowest Speed 145 | 120 120 145 Overloaded Moves . | . . . Propulsion Burnouts . | . . . Robots Hopped . | . . . Cave-ins Triggered . | . . . Exploration Rate (%) 31 | 2 55 38 Regions Visited 2 Branch Regions . Pre-discovered Areas . | . . . Known Exits Taken . | . . . Unknown Exits Taken 2 | 1 1 . Scrap Searched . | . . . Spaces Dug . | . . . Terrain Destroyed 9 | . . 9 Melee . | . . . Projectile . | . . . AOE 9 | . . 9 Terrain Rammed . | . . . Walls Destroyed . | . . . Machines Disabled . | . . . Actions | -11 -10 -9 --------- Run | Jun Mat Mat Total 1033 | 6 530 497 Wait 156 | . 58 98 Move 752 | 5 404 343 Hop . | . . . Pick Up 17 | . 10 7 Fast Attach 4 | . 2 2 Attach 4 | . 1 3 Detach . | . . . Swap 17 | 1 10 6 Drop 14 | . 12 2 Fire 69 | . 33 36 Melee . | . . . Ram . | . . . Kick . | . . . Crush . | . . . Escape Stasis . | . . . Rewire . | . . . Trap . | . . . Miscellaneous . | . . . Route ------- -11/Junkyard -10/Materials (discovered 3 exits: *Mat x2 / [*Min]) -9/Materials History --------- Turn | Location | Event 3 | -11/Junkyard | Discovered new exit (range 3) 9 | -11/Junkyard | Entered Materials 315 | -10/Materials | Build established: Mutant 338 | -10/Materials | Discovered new exit (range 10) 441 | -10/Materials | Discovered new exit (range 8) 653 | -10/Materials | Discovered new exit (range 14) 669 | -10/Materials | Entered another Materials area 669 | -9/Materials | Evolved 2 slots: Propulsion x1, Utility x1 1385 | -9/Materials | Self-destructed Last Messages --------------- 01276_ U-05 Engineer lays Concrete. 01280_ L-31 Rogue destroyed. 01284_ Acquired Core Shielding. 01285_ R-06 Scavenger collects Lgt. Cannon. 01285_ U-05 Engineer builds a Door. 01287_ Acquired 23 matter. 01288_ K-01 Serf collects debris. 01289_ R-06 Scavenger collects Aluminum Leg. 01290_ Acquired 14 matter. 01292_ Critical hit (Burn: +37). 01292_ K-01 Serf collects debris. 01306_ Y-45 Defender destroyed. 01307_ K-01 Serf collects debris. 01309_ Acquired 55 matter. 01311_ K-01 Serf collects debris. 01312_ R-06 Scavenger collects Beam Rifle. 01312_ K-01 Serf collects debris. 01316_ R-06 Scavenger collects Lgt. Treads. 01318_ K-01 Serf collects debris. 01321_ R-06 Scavenger collects Heat Sink. Map ----- +----------------------------------------------------+ | | | | | | | | | | | | | | | | | | | | | | | | | | | | | ?????????????????????????????????????????????????? | | ?????????????????????????????????????????????????? | | ?????????????????????????????????????????????????? | | ?????????????????????????????????????????????????? | | ???????????????????????########??????????????????? | | ???????????????????????# #??????X???????????? | | ???????????????????????# #??????????????????? | | ???????????????????????# #??????????????????? | | ???????????????????????# ####+############+## | | ???????????????x???????# # | | ???????????????????????# # | | ???????????????????????# @ + | | ???????????????????????# # | | ???????????????????????# # | | ???????????????????????# ##### ###########+## | | ???????????????????????# #???# #????# | | ???????????????????????# #???# #????# ! ! | | ???????????????????????# #???# #????# | | ???????????????????????# #???# ###### ]] | | ???????????????????????########???# + ]] | | ??????????????????????????????????######## | | ?????????????????????????????????????????# | | ?????????????????????????????????????????# | | ?????????????????????????????????????????# ! | | ?????????????????????????????????????????######### | | ?????????????????????????????????????????????????? | | ??????????????????????????????????#??????????????? | | ??????????????????????????????????# ?????####### | | ??????????????????????????????????# ??# !# | | ??????????????????????????????????# # %!# | | ??????????????????????????????????# + % | | ??????????????????????????????????# # # | | ???????????????????????????????????????????# % # | | ???????????????????????????????????????????## ## | | ????????????????????????????????????????????# ## | | ????????????????????????????????????????????# # | +----------------------------------------------------+ Best States ------------- Heat Dissipation 28 Energy Generation 12 Energy Capacity 265 Matter Stores 300 Matter Capacity 300 Sight Range 16 Robot Scan Range 14 Terrain Scan Density 10 Evasion (%) 55 Recoil Reduction 2 Item Schematics ----------------- Adv. Treads | -9/Materials | Scanalyzed Robot Schematics ------------------ None Fabricated ------------ Nothing Alien Tech Used ----------------- None Achievements -------------- None Challenges ------------ None Game ------ Seed MyomerSensorNullifier Manual? 0 Play Time 00:16:14 Cumulative 25.0 hours Start 2023.03.08 @ 11:42:49 End 2023.03.09 @ 12:59:18 Sessions 2 Manual Loads 0 Difficulty Rogue Special Mode None Game No. 99 Rogue 99 Adventurer 0 Explorer 0 Win Type - Total 0 Types 0/0/0/0/0/0/0/0/0 Lore% 12 Gallery% 22 Achievement% 19 Wizard Run 0 Options --------- ASCII 0 Keyboard 0 Movement Arrows Keybinds 0 Fullscreen 1 Font 18/SmallcapsGlow Map View 76x50 Tactical HUD 1 Map Filters NONE Filters NONE Steam 1 RUN: e7704652-f794-46c2-9ffc-2f3a26dbafda